bitfinex-derivatives/quotes_ETHF0:USTF0_20260207
["timestamp","ask_amount","ask_price","bid_price","bid_amount"]
[1770445190628,11.07730249,2075.5,2074.4,0.00615448]
[1770445191830,11.07732249,2075.3,2074.0,0.25379135]
[1770445192128,10.83623249,2075.0,2073.9,10.77394777]
[1770445192422,10.83623249,2075.0,2073.5,10.77394777]
[1770445192822,10.83623249,2075.0,2073.5,10.77740268]
[1770445194230,10.83623249,2075.0,2073.5,11.03079732]
[1770445194931,11.07736249,2075.0,2073.5,11.03079732]
[1770445195935,10.83623249,2075.0,2073.7,10.77394777]
[1770445199534,10.83623249,2075.0,2073.8,10.77394777]
[1770445200535,10.83623249,2075.0,2073.9,10.77394777]
[1770445200942,10.83623249,2075.4,2074.0,10.77394777]
[1770445202045,10.83623249,2075.9,2074.5,10.77394777]
[1770445202342,10.83623249,2075.9,2074.8,10.77394777]
[1770445202735,10.84008932,2076.1,2074.9,10.77394777]
[1770445203343,10.84008932,2076.1,2074.5,10.77394777]
[1770445203839,10.84008932,2076.1,2074.7,10.77394777]
[1770445204644,11.08108932,2076.1,2074.7,10.77394777]
[1770445206341,10.84008932,2076.1,2074.8,11.55391549]
[1770445206538,10.84008932,2076.1,2074.9,11.55391549]
[1770445209448,10.84008932,2076.1,2074.9,14.42909879]
[1770445209949,10.84008932,2076.1,2075.1,10.89628703]
[1770445210154,10.84361603,2076.1,2075.1,10.90176202]
[1770445212040,10.84361603,2076.1,2075.1,0.00547499]
[1770445212541,10.84361603,2076.1,2075.1,10.90176202]
[1770445213751,10.84361603,2076.1,2075.1,0.00547499]
[1770445217749,10.84361603,2076.1,2075.1,10.90176202]
[1770445218145,10.84361603,2076.1,2075.1,0.00547499]
[1770445218349,11.08461603,2076.1,2075.1,0.00547499]
[1770445218847,11.08461603,2076.1,2074.7,10.89628703]
[1770445219146,10.8397592,2075.9,2074.3,2.8751833]
[1770445219453,10.8397592,2075.7,2074.4,10.89628703]
[1770445221149,10.8397592,2075.7,2074.5,10.89628703]
[1770445221349,10.8397592,2075.7,2074.6,10.89628703]
[1770445221551,10.8397592,2076.0,2074.6,10.89628703]
[1770445221750,10.8397592,2076.0,2074.9,10.89628703]
[1770445223350,10.8397592,2076.0,2075.0,10.89628703]
[1770445224451,0.00385683,2076.1,2075.0,10.89628703]
[1770445224657,10.8397592,2076.4,2075.4,10.89628703]
[1770445225751,10.84380443,2076.4,2075.4,10.89628703]
[1770445236562,10.84380443,2076.4,2075.5,10.65932506]
[1770445237763,0.00404523,2076.4,2075.7,10.65932506]
[1770445237959,0.00164034,2076.4,2075.7,10.65932506]
[1770445238163,11.48720207,2076.4,2075.7,10.65932506]
[1770445239068,11.48720207,2076.4,2075.3,13.53450836]
[1770445239267,11.48720207,2076.4,2075.3,10.65932506]
[1770445239657,11.48720207,2076.4,2075.1,13.53450836]
[1770445239864,11.48720207,2076.4,2075.2,10.65932506]
[1770445242665,11.48720207,2076.4,2075.1,10.65932506]
[1770445243164,11.48720207,2076.4,2075.1,13.53450836]
[1770445243366,11.48720207,2076.4,2075.2,10.65932506]
[1770445247367,11.48720207,2076.4,2075.0,10.663416]
[1770445247667,11.72817207,2076.4,2075.0,10.663416]
[1770445247871,11.48556173,2076.3,2075.0,10.663416]
[1770445248265,11.48556173,2076.1,2075.0,10.663416]
[1770445251473,11.48556173,2076.1,2075.0,0.00409094]
[1770445251971,11.48556173,2075.7,2074.8,2.8751833]
[1770445252177,11.48556173,2075.7,2074.8,10.65932506]
[1770445253174,11.48556173,2075.7,2074.8,10.66172994]
[1770445254570,11.48556173,2076.1,2074.9,10.65932506]
[1770445254771,11.48556173,2076.1,2075.0,10.65932506]
[1770445254965,11.48556173,2076.3,2075.0,10.65932506]
[1770445255168,11.48556173,2076.3,2075.2,10.65932506]
[1770445255477,11.48556173,2076.3,2075.3,10.65932506]
[1770445255867,11.48556173,2076.3,2075.4,10.65932506]
[1770445257275,0.00164034,2076.4,2075.5,10.65932506]
[1770445257476,11.48720207,2076.4,2075.5,10.65932506]
[1770445259773,0.00164034,2076.4,2075.5,13.53450836]
[1770445259979,0.00164034,2076.4,2075.6,10.65932506]
[1770445260675,11.48556173,2077.0,2075.6,10.65932506]
[1770445260878,11.48556173,2077.0,2076.0,10.65932506]
[1770445261078,11.48556173,2077.2,2076.1,10.65932506]
[1770445261279,10.35048937,2077.3,2076.3,10.65932506]
[1770445261477,10.35048937,2077.3,2076.4,10.65932506]
[1770445261778,10.35407296,2077.3,2076.4,10.66337029]
[1770445261981,21.83963469,2077.3,2076.4,10.66337029]
[1770445262479,11.48556173,2077.2,2076.4,10.93233837]
[1770445263479,10.35407296,2077.3,2076.4,10.93233837]
[1770445263874,10.35407296,2077.3,2076.5,10.65932506]
[1770445265979,10.35407296,2077.3,2076.6,11.54554866]
[1770445266277,11.49074394,2077.8,2076.6,11.54554866]
[1770445266483,11.49074394,2078.2,2076.6,11.54554866]
[1770445266675,11.49074394,2078.2,2076.6,14.66167196]
[1770445266876,11.49074394,2078.2,2076.8,11.54554866]
[1770445267379,11.49681769,2078.2,2076.8,11.54554866]
[1770445269176,11.49681769,2078.2,2076.8,11.78644866]
[1770445269780,11.49681769,2078.2,2076.9,11.48273304]
[1770445271183,11.49681769,2078.2,2076.9,11.72363304]
[1770445272281,0.00607375,2078.2,2077.3,11.48273304]
[1770445272982,11.7855191,2078.2,2077.3,11.48273304]
[1770445274188,11.7855191,2078.2,2076.7,11.48273304]
[1770445275886,11.7855191,2078.2,2076.4,0.27301331]
[1770445275887,11.77944535,2077.7,2076.4,0.00404523]
[1770445276087,11.77944535,2077.7,2076.4,11.7610555]
[1770445276484,11.77944535,2077.7,2076.4,12.0020055]
[1770445276691,11.77944535,2078.1,2076.8,11.72364304]
[1770445280595,11.77944535,2078.1,2076.8,11.48273304]
[1770445285305,11.77944535,2078.1,2076.9,11.48273304]
[1770445285600,11.77944535,2078.1,2077.1,11.48273304]
[1770445289408,11.77944535,2078.1,2077.3,11.48273304]
[1770445290005,11.77944535,2078.1,2077.1,11.48273304]
[1770445290813,11.77944535,2078.1,2077.3,11.48273304]
[1770445291308,11.77944535,2078.1,2077.4,11.48273304]
[1770445292306,11.77944535,2078.1,2077.3,2.8751833]
[1770445292508,11.77944535,2078.1,2077.2,14.35791634]
[1770445293110,11.77944535,2078.1,2077.3,4.71657265]
[1770445293305,11.77944535,2078.1,2077.2,14.35791634]
[1770445293513,11.77944535,2078.1,2077.3,16.1993045]
[1770445293811,11.77944535,2078.1,2077.4,11.48273304]
[1770445294212,11.77944535,2078.1,2077.3,2.8751833]
[1770445294606,11.77944535,2078.1,2077.3,14.35791634]
[1770445296610,11.77944535,2078.1,2077.4,10.72366537]
[1770445298511,11.77944535,2078.1,2077.5,10.72366537]
[1770445298713,11.77944535,2078.1,2077.7,10.72366537]
[1770445298913,0.00607375,2078.2,2077.7,10.72366537]
[1770445299804,0.00607375,2078.2,2077.7,13.59884867]
[1770445300009,0.00607375,2078.2,2077.8,10.72366537]
[1770445300208,11.03783008,2078.2,2077.8,10.72366537]
[1770445300409,0.00607375,2078.2,2077.8,10.72366537]
[1770445300806,11.03783008,2078.2,2077.7,13.59884867]
[1770445301012,11.03783008,2078.2,2077.5,13.59884867]
[1770445301204,11.03783008,2078.2,2077.5,2.8751833]
[1770445302112,11.03783008,2078.2,2077.4,2.8751833]
[1770445302419,11.03783008,2078.2,2077.0,10.72366537]
[1770445303612,11.03783008,2078.2,2077.3,10.72366537]
[1770445305412,11.03783008,2078.2,2077.0,13.59884867]
[1770445305612,11.03783008,2078.2,2077.1,10.72366537]
[1770445306808,11.03783008,2078.2,2077.4,10.72366537]
[1770445309115,11.03783008,2078.2,2077.2,13.59884867]
[1770445309420,11.03783008,2078.2,2077.1,2.8751833]
[1770445310320,11.03783008,2078.2,2077.2,10.72366537]
[1770445312621,11.03783008,2078.2,2077.0,13.59884867]
[1770445312823,11.03783008,2078.2,2077.1,4.76367558]
[1770445313022,11.03783008,2078.2,2077.0,13.59884867]
[1770445313222,11.03783008,2078.2,2077.1,4.76354709]
[1770445313423,11.03783008,2078.2,2077.0,13.59884867]
[1770445313725,11.03783008,2078.2,2077.1,4.76354818]
[1770445313921,11.03783008,2078.2,2077.0,13.59884867]
[1770445314119,11.03783008,2078.2,2077.1,15.48721451]
[1770445314320,11.03783008,2078.2,2077.2,10.72366537]
[1770445314519,11.03783008,2078.2,2077.1,10.72366537]
[1770445315027,11.03783008,2078.2,2077.2,10.72366537]
[1770445316819,11.03783008,2078.2,2077.3,10.72366537]
[1770445319325,11.03783008,2078.2,2077.1,10.72366537]
[1770445320334,11.03783008,2078.2,2077.2,18.36244707]
[1770445320527,11.03783008,2078.2,2077.3,10.72366537]
[1770445328640,0.00607375,2078.2,2077.3,13.59884867]
[1770445328940,0.00607375,2078.2,2077.6,11.18425673]
[1770445330438,11.77556888,2078.6,2077.6,11.18425673]
[1770445330740,11.77556888,2078.6,2077.8,11.18425673]
[1770445330944,11.77556888,2078.6,2077.7,11.18425673]
[1770445331444,11.77928757,2078.6,2077.7,11.18425673]
[1770445333942,11.77928757,2078.6,2077.8,11.18425673]
[1770445334647,0.00371869,2078.6,2077.9,15.96166035]
[1770445334846,22.01559092,2079.2,2078.3,11.18425673]
[1770445335141,11.77556888,2079.2,2078.4,11.18425673]
[1770445335550,11.77556888,2079.6,2078.5,7.71605353]
[1770445335754,0.00579607,2079.6,2078.7,14.05944003]
[1770445336046,0.00579607,2079.6,2078.9,11.18425673]
[1770445337053,11.77556888,2080.0,2079.0,11.18425673]
[1770445338044,0.00579607,2079.9,2079.0,11.18425673]
[1770445338255,11.78136495,2079.9,2079.1,11.18425673]
[1770445339356,0.00579607,2079.9,2079.1,11.18425673]
[1770445339944,0.0051025,2080.0,2079.1,11.18425673]
[1770445340150,0.01089857,2080.0,2079.1,11.18425673]
[1770445340848,11.78646745,2080.0,2079.1,11.18425673]
[1770445341254,11.78067138,2080.0,2079.1,11.18425673]
[1770445341453,0.00579607,2079.9,2079.1,11.18425673]
[1770445342447,11.78136495,2079.9,2079.1,11.18425673]
[1770445342850,11.78067138,2080.0,2079.1,11.18425673]
[1770445345557,0.0051025,2080.0,2079.1,11.18425673]
[1770445346356,11.78067138,2080.0,2079.1,11.18425673]
[1770445348462,11.78067138,2080.0,2078.8,11.18425673]
[1770445349359,0.0051025,2080.0,2078.8,11.18425673]
[1770445349662,0.0051025,2080.0,2079.1,11.18425673]
[1770445349663,11.78067138,2080.0,2079.1,11.18425673]
[1770445350858,0.0051025,2080.0,2079.1,11.18425673]
[1770445352663,11.77556888,2080.4,2079.1,11.18425673]
[1770445353564,11.77984484,2080.4,2079.1,11.18425673]
[1770445355060,0.00427596,2080.4,2079.4,11.18425673]
[1770445355262,0.00427596,2080.4,2079.5,11.18425673]
[1770445356666,11.14008891,2080.3,2079.4,10.97604257]
[1770445357462,11.14008891,2080.3,2079.4,0.00560712]
[1770445360663,11.14008891,2080.3,2078.7,2.84904496]
[1770445360664,11.38059891,2080.3,2078.8,10.97043545]
[1770445360864,11.14008891,2080.1,2078.8,10.97043545]
[1770445361458,11.14008891,2080.1,2078.6,13.81948041]
[1770445361661,11.14008891,2080.1,2078.7,4.90181618]
[1770445361858,11.38061891,2080.1,2078.7,10.97043545]
[1770445362264,11.38061891,2080.1,2078.7,11.25256018]
[1770445362665,11.14008891,2079.9,2078.7,11.25256018]
[1770445363670,11.14008891,2079.9,2078.6,2.85335611]
[1770445363871,11.14008891,2079.9,2078.6,0.00431115]
[1770445364065,11.14008891,2079.6,2078.6,0.00431115]
[1770445366566,14.78692634,2080.3,2078.1,14.09464387]
[1770445366567,11.14008891,2079.4,2078.1,14.09464387]
[1770445366765,11.14008891,2079.4,2078.0,2.84904496]
[1770445366963,11.14008891,2079.4,2077.9,15.28061025]
[1770445366964,11.14008891,2079.4,2077.9,13.81948041]
[1770445367166,11.14008891,2079.4,2077.9,10.97043545]
[1770445367576,11.14008891,2079.2,2077.9,10.97441058]
[1770445368574,11.38072891,2079.2,2077.9,10.97441058]
[1770445369568,11.38072891,2079.2,2077.9,0.00397513]
[1770445370777,11.14008891,2079.0,2077.9,0.00397513]
[1770445371875,11.14008891,2079.0,2077.9,10.97441058]
[1770445374477,11.14008891,2079.0,2078.1,10.97043545]
[1770445374873,0.24058,2079.7,2078.1,10.97043545]
[1770445374874,11.14008891,2079.2,2078.1,10.97043545]
[1770445376376,11.14008891,2079.4,2078.2,10.97043545]
[1770445376673,11.14008891,2079.4,2078.4,10.97043545]
[1770445378176,11.14008891,2080.1,2078.5,10.97043545]
[1770445378474,11.14008891,2080.1,2078.6,10.97043545]
[1770445380982,11.14008891,2080.1,2078.9,10.97043545]
[1770445385282,11.14008891,2080.1,2078.7,10.97043545]
[1770445385481,11.14008891,2079.9,2078.5,10.97043545]
[1770445385679,0.00427596,2080.4,2078.5,10.97043545]
[1770445385680,11.14008891,2079.7,2078.5,10.97043545]
[1770445390789,11.14008891,2079.7,2078.6,11.22853847]
[1770445393488,11.14008891,2079.7,2078.8,11.22853847]
[1770445393782,11.14008891,2079.7,2078.6,14.07758343]
[1770445393984,11.14008891,2079.7,2078.7,11.22853847]
[1770445395989,11.14008891,2079.7,2078.8,11.22853847]
[1770445396987,11.14008891,2079.7,2078.6,14.07758343]
[1770445397581,11.14008891,2079.7,2078.7,11.22853847]
[1770445397991,11.14008891,2079.7,2078.8,11.22853847]
[1770445401189,11.14008891,2079.7,2078.9,11.22853847]
[1770445401391,11.14008891,2079.7,2079.1,11.22853847]
[1770445410415,11.14008891,2079.7,2079.2,11.22853847]
[1770445411718,0.24052,2080.2,2079.2,11.22853847]
[1770445411719,11.71780913,2080.1,2079.2,11.22853847]
[1770445412920,11.71780913,2080.1,2079.3,11.22853847]
[1770445414516,11.71780913,2080.1,2079.2,2.84904496]
[1770445414721,11.95833913,2080.1,2078.8,11.22853847]
[1770445415625,11.71780913,2079.9,2078.8,11.22853847]
[1770445419526,11.16068481,2079.7,2078.6,11.79729789]
[1770445422729,11.40126481,2079.7,2078.4,11.79729789]
[1770445423424,11.16068481,2079.3,2078.4,11.79729789]
[1770445425323,11.16068481,2079.1,2078.1,11.79729789]
[1770445425516,11.16068481,2079.1,2077.9,2.85302009]
[1770445425716,11.16068481,2079.1,2077.9,11.80127302]
[1770445425921,11.16068481,2079.1,2077.9,14.65031798]
[1770445426122,11.16068481,2079.1,2077.9,11.80127302]
[1770445428117,11.40133481,2079.1,2077.9,11.80127302]
[1770445429629,11.16068481,2078.9,2077.9,11.80127302]
[1770445429828,11.16593369,2078.9,2077.9,11.80127302]
[1770445434422,0.00524888,2078.9,2077.9,11.80127302]
[1770445434622,11.16593369,2078.9,2077.9,11.80127302]
[1770445440030,11.16068481,2078.7,2077.9,0.00397513]
[1770445440234,11.16068481,2078.7,2077.9,11.80127302]
[1770445440634,11.16068481,2078.5,2077.3,11.79729789]
[1770445441525,11.16068481,2078.3,2077.3,11.80089451]
[1770445442333,11.16068481,2078.1,2077.3,0.00359662]
[1770445442932,11.16068481,2078.1,2077.3,11.80089451]
[1770445446730,11.67515242,2077.8,2076.8,10.92607133]
[1770445446933,11.67515242,2077.8,2076.6,11.21943144]
[1770445447134,11.67515242,2077.8,2076.6,10.92607133]
[1770445447732,11.67515242,2077.8,2076.6,0.00619658]
[1770445447937,11.67515242,2077.8,2076.2,13.77511629]
[1770445447938,11.91597242,2077.6,2076.2,10.92607133]
[1770445448330,11.91597242,2077.6,2076.2,11.20814946]
[1770445448941,11.91597242,2077.6,2076.2,11.21278269]
[1770445449536,11.91597242,2077.6,2076.3,16.58303067]
[1770445449537,11.67515242,2077.6,2076.3,16.58303067]
[1770445449744,11.67515242,2077.6,2076.4,11.67567549]
[1770445457843,11.67515242,2077.6,2076.6,11.67567549]
[1770445461046,11.77672373,2078.0,2076.6,14.52472045]
[1770445461247,11.77672373,2078.0,2076.8,11.67567549]
[1770445462246,11.77672373,2078.2,2077.0,11.67567549]
[1770445462449,11.77672373,2078.2,2077.0,14.52472045]
[1770445463045,11.77672373,2078.2,2076.9,4.3101748]
[1770445463046,11.77672373,2078.2,2077.2,11.67567549]
[1770445463246,11.77672373,2078.5,2077.2,11.67567549]
[1770445464352,11.77672373,2078.5,2077.4,11.67567549]
[1770445466950,11.77672373,2078.7,2077.4,14.52472045]
[1770445467142,11.77672373,2078.7,2077.7,14.52472045]
[1770445467349,11.77672373,2078.7,2077.9,11.67567549]
[1770445468853,11.77672373,2078.7,2077.7,11.68030872]
[1770445469458,11.77672373,2078.7,2077.7,0.00463323]
[1770445470451,11.77672373,2078.7,2077.7,11.68030872]
[1770445470854,11.77672373,2078.7,2077.7,0.00463323]
[1770445472656,11.77672373,2078.7,2077.7,11.68030872]
[1770445475752,11.77672373,2078.7,2077.7,0.00463323]
[1770445476155,11.77672373,2078.7,2077.7,11.62778204]
[1770445478064,11.77672373,2078.7,2077.7,0.00463323]
[1770445478561,10.6965582,2078.4,2077.1,11.62314881]
[1770445482666,10.6965582,2078.4,2076.9,11.62314881]
[1770445483258,10.6965582,2078.4,2076.9,14.4895633]
[1770445483459,10.6965582,2078.4,2076.9,11.62314881]
[1770445483656,10.6965582,2078.4,2077.0,4.9162006]
[1770445483859,10.6965582,2078.4,2077.1,11.62314881]
[1770445484757,10.6965582,2078.4,2077.3,14.4895633]
[1770445485860,10.6965582,2078.4,2077.5,11.62314881]
[1770445487165,10.6965582,2078.4,2077.5,14.4895633]
[1770445487361,10.6965582,2078.8,2077.8,11.62314881]
[1770445487565,10.6965582,2078.8,2078.0,11.62314881]
[1770445489163,10.6965582,2078.8,2077.8,14.4895633]
[1770445489465,10.6965582,2078.8,2077.6,11.62314881]
[1770445491866,10.6965582,2078.8,2077.6,14.4895633]
[1770445492067,10.6965582,2078.8,2077.8,11.62314881]
[1770445493168,0.00524888,2078.9,2078.0,14.4895633]
[1770445493566,0.00524888,2078.9,2078.2,14.4895633]
[1770445493870,10.70180708,2078.9,2078.2,14.4895633]
[1770445494063,10.70180708,2078.9,2078.2,11.62314881]
[1770445497769,1.25448456,2079.3,2078.2,14.4895633]
[1770445498075,11.95104276,2079.3,2078.4,11.62314881]
[1770445499073,11.95500739,2079.3,2078.4,11.62839769]
[1770445500371,1.25844919,2079.3,2078.6,14.4895633]
[1770445501775,10.70052283,2079.3,2078.6,11.62314881]
[1770445503072,0.00396463,2079.3,2078.6,11.62314881]
[1770445503275,10.6965582,2079.7,2078.7,4.93037325]
[1770445503579,10.6965582,2079.9,2078.9,11.62314881]
[1770445504373,10.70035304,2079.9,2078.9,11.62314881]
[1770445505485,10.70035304,2079.9,2079.1,11.62314881]
[1770445505486,0.00379484,2079.9,2079.1,11.62314881]
[1770445508776,0.00379484,2079.9,2079.1,11.91388571]
[1770445509788,10.93894279,2080.2,2079.1,11.91388571]
[1770445510782,10.94292442,2080.2,2079.1,11.91388571]
[1770445512190,10.94292442,2080.2,2079.2,11.36321478]
[1770445513485,10.94292442,2080.2,2078.9,11.36321478]
[1770445513678,10.94292442,2080.2,2079.0,11.36321478]
[1770445515391,10.94292442,2080.2,2079.0,11.65501974]
[1770445515588,10.94292442,2080.2,2079.2,11.36321478]
[1770445519196,10.94292442,2080.2,2079.3,11.36321478]
[1770445522196,10.94292442,2080.2,2079.4,11.36321478]
[1770445522501,0.00398163,2080.2,2079.6,11.36321478]
[1770445524101,0.00398163,2080.2,2079.6,14.22962927]
[1770445524300,10.94292442,2080.2,2079.7,11.36321478]
[1770445524899,0.00398163,2080.2,2079.7,11.36321478]
[1770445526591,0.00398163,2080.2,2079.7,2.86641449]
[1770445526795,0.00398163,2080.2,2079.8,11.36321478]
[1770445528201,10.94292442,2080.2,2079.8,14.22962927]
[1770445528396,10.94292442,2080.2,2079.8,11.36321478]
[1770445529597,0.00398163,2080.2,2079.8,11.36321478]
[1770445529801,10.94292442,2080.2,2079.9,11.36321478]
[1770445530007,10.94292442,2080.2,2079.4,4.3101748]
[1770445530307,10.94292442,2080.2,2079.3,15.67338958]
[1770445530600,10.94292442,2080.2,2079.2,4.3101748]
[1770445530807,10.94292442,2080.2,2079.0,0.29180496]
[1770445531107,10.94292442,2080.2,2079.0,0.00541223]
[1770445531708,10.94292442,2080.2,2079.0,11.36862701]
[1770445532108,10.94292442,2080.2,2079.1,16.29265156]
[1770445532407,10.94292442,2080.2,2079.1,11.36321478]
[1770445533309,10.94292442,2080.2,2079.3,11.36321478]
[1770445534306,10.94292442,2080.2,2079.6,11.36321478]
[1770445536011,10.94292442,2080.2,2079.8,10.86064296]
[1770445536424,10.94292442,2080.2,2079.7,10.86064296]
[1770445536717,10.94292442,2080.2,2079.8,4.92842863]
[1770445536900,10.94292442,2080.2,2079.5,4.3101748]
[1770445537104,10.94292442,2080.2,2079.4,15.17081776]
[1770445537309,10.94292442,2080.2,2079.5,4.92883073]
[1770445537505,10.94292442,2080.2,2079.4,15.17081776]
[1770445537702,10.94292442,2080.2,2079.5,4.92886668]
[1770445537908,10.94292442,2080.2,2079.3,4.3101748]
[1770445538104,10.94292442,2080.2,2079.4,4.92905769]
[1770445538305,10.94292442,2080.2,2079.3,4.3101748]
[1770445538505,10.94292442,2080.2,2079.4,4.9285743]
[1770445538705,10.94292442,2080.2,2079.3,15.17081776]
[1770445538907,10.94292442,2080.2,2079.4,4.9285881]
[1770445539207,10.94292442,2080.2,2079.3,10.86064296]
[1770445539510,10.94292442,2080.2,2079.4,4.92803705]
[1770445539710,10.94292442,2080.2,2079.3,10.86064296]
[1770445539911,10.94292442,2080.2,2079.4,4.92805852]
[1770445540111,10.94292442,2080.2,2079.3,10.86064296]
[1770445540410,10.94292442,2080.2,2079.4,4.92805773]
[1770445540610,10.94292442,2080.2,2079.2,15.17081776]
[1770445540812,10.94292442,2080.2,2079.3,4.92812299]
[1770445541006,10.94292442,2080.2,2079.2,10.86064296]
[1770445544416,10.94292442,2080.2,2079.0,10.86605519]
[1770445550315,11.31981499,2080.0,2079.0,0.00541223]
[1770445550612,11.56035499,2080.0,2079.0,0.00541223]
[1770445553117,11.56035499,2080.0,2079.0,10.86605519]
[1770445553815,11.31981499,2080.0,2079.0,10.86605519]
[1770445557819,11.31981499,2080.0,2079.2,10.86064296]
[1770445558019,11.32379662,2080.2,2079.2,10.86064296]
[1770445559225,11.32379662,2080.2,2079.4,10.86064296]
[1770445559419,11.32379662,2080.2,2079.0,4.31558703]
[1770445559614,11.31981499,2080.0,2079.0,10.86605519]
[1770445560528,11.32379662,2080.2,2079.2,10.86064296]
[1770445560727,11.32379662,2080.2,2079.4,10.86064296]
[1770445561223,11.32379662,2080.2,2079.0,10.86605519]
[1770445561423,11.32379662,2080.2,2079.2,10.86064296]
[1770445566926,11.32379662,2080.2,2079.4,11.14170608]
[1770445568733,0.00398163,2080.2,2079.6,10.89179566]
[1770445570431,0.00398163,2080.2,2079.8,10.89179566]
[1770445571032,10.71010811,2080.2,2079.8,10.89179566]
[1770445571334,10.71010811,2080.2,2079.6,10.89179566]
[1770445572227,0.00398163,2080.2,2079.6,10.89179566]
[1770445573428,0.00398163,2080.2,2079.8,10.89179566]
[1770445574530,10.71010811,2080.2,2079.6,10.89179566]
[1770445575835,0.00398163,2080.2,2079.6,10.89179566]
[1770445580436,10.71010811,2080.2,2079.6,10.89179566]
[1770445581635,10.71010811,2080.2,2079.4,10.89179566]
[1770445581836,10.71010811,2080.2,2079.6,10.89179566]
[1770445582336,0.00398163,2080.2,2079.6,10.89179566]
[1770445586844,10.71010811,2080.2,2079.6,10.89179566]
[1770445588144,0.00398163,2080.2,2079.6,10.89179566]
[1770445588345,10.71010811,2080.2,2079.6,10.89179566]
[1770445589943,10.71010811,2080.2,2079.7,10.89179566]
[1770445591543,0.00398163,2080.2,2079.7,10.89179566]
[1770445594749,0.00398163,2080.2,2079.8,10.89179566]
[1770445595652,10.71010811,2080.2,2079.8,10.89179566]
[1770445596154,0.00398163,2080.2,2079.8,10.89179566]
[1770445601656,0.00398163,2080.2,2080.0,10.64937207]
[1770445605258,0.00398163,2080.2,2080.0,6.11911187]
[1770445605454,11.04931453,2080.3,2080.0,6.11911187]
[1770445605751,11.04931453,2080.3,2079.9,7.65327036]
[1770445606256,0.24046,2080.8,2079.9,7.65327036]
[1770445606257,11.04931453,2080.7,2079.9,7.65327036]
[1770445606456,11.05465315,2080.7,2079.9,7.65327036]
[1770445609063,11.05465315,2080.7,2079.7,7.60206937]
[1770445609665,11.05465315,2080.7,2079.9,7.74594372]
[1770445612465,0.00533862,2080.7,2079.9,7.74594372]
[1770445612657,0.00533862,2080.7,2080.2,7.79908921]
[1770445613269,11.04931453,2080.9,2080.2,7.79908921]
[1770445614269,11.05495079,2080.9,2080.2,7.79908921]
[1770445616161,0.00563626,2080.9,2080.2,7.79908921]
[1770445616771,11.05495079,2080.9,2080.2,7.79908921]
[1770445620171,11.05495079,2080.9,2080.3,7.43443176]
[1770445620472,11.04931453,2081.2,2080.5,7.43443176]
[1770445620775,11.04931453,2081.7,2080.9,7.43443176]
[1770445621573,11.05530866,2081.7,2080.9,7.44028614]
[1770445622271,11.05530866,2081.7,2080.9,7.38887601]
[1770445624063,0.00599413,2081.7,2080.9,7.38887601]
[1770445624268,11.04931453,2082.2,2081.3,7.44997206]
[1770445625272,11.05352504,2082.2,2081.3,7.44997206]
[1770445625874,0.00421051,2082.2,2081.3,7.44997206]
[1770445627078,0.00421051,2082.2,2081.5,7.44927087]
[1770445627468,0.00421051,2082.2,2081.5,7.74172876]
[1770445630080,1.30835876,2083.4,2082.0,8.85214088]
[1770445630081,10.93722157,2083.4,2082.0,8.85214088]
[1770445630277,10.93722157,2083.4,2082.3,8.85214088]
[1770445630981,10.94289607,2083.4,2082.3,8.85214088]
[1770445631278,10.93722157,2083.6,2082.8,8.85214088]
[1770445631671,10.93722157,2083.8,2082.8,8.85214088]
[1770445632280,10.94212452,2083.8,2082.8,8.85567319]
[1770445633685,10.94212452,2083.8,2082.8,0.00353231]
[1770445634182,10.94212452,2083.8,2082.8,8.49730649]
[1770445636387,10.94212452,2083.8,2082.8,0.00353231]
[1770445636588,10.93722157,2083.5,2082.1,8.57254149]
[1770445637387,11.17736157,2083.5,2082.1,8.57254149]
[1770445637582,11.17736157,2083.5,2082.1,8.57745183]
[1770445639282,10.93722157,2083.5,2082.1,8.57745183]
[1770445642392,10.93722157,2082.4,2081.1,8.66007387]
[1770445642597,10.93722157,2082.2,2080.9,8.66007387]
[1770445642888,10.93722157,2081.8,2080.7,8.66007387]
[1770445643291,10.94288007,2081.8,2080.7,8.66432645]
[1770445643784,11.18322007,2081.8,2080.7,0.00425258]
[1770445644598,10.93722157,2081.6,2080.7,0.00425258]
[1770445644895,0.24035,2081.7,776.72,0.68168398]
[1770445644896,10.93722157,2081.2,2080.0,8.90171356]
[1770445645088,11.17763157,2081.2,2080.0,8.90171356]
[1770445645293,11.17763157,2081.2,2079.9,0.30246742]
[1770445645494,11.17763157,2081.2,2079.8,8.90171356]
[1770445645799,11.17763157,2081.2,2079.8,9.20922637]
[1770445645987,11.17763157,2081.2,2079.8,8.90669925]
[1770445651693,10.93722157,2081.2,2079.8,8.90669925]
[1770445653197,10.93722157,2081.7,2079.8,8.90669925]
[1770445653398,10.93722157,2081.7,2080.0,9.10978601]
[1770445653598,10.93722157,2081.7,2080.1,9.10978601]
[1770445654498,10.93722157,2081.7,2080.2,9.19950959]
[1770445654699,10.93722157,2081.7,2080.4,9.19950959]
[1770445654999,0.0056585,2081.8,2080.4,9.19950959]
[1770445655500,0.0056585,2081.8,2080.6,9.19950959]
[1770445655797,11.42946973,2082.1,2080.6,9.19950959]
[1770445656694,11.433706,2082.1,2080.6,9.19950959]
[1770445657902,11.433706,2082.1,2080.7,9.29708712]
[1770445658497,0.00423627,2082.1,2081.1,9.29708712]
[1770445658897,0.00423627,2082.1,2081.3,9.29708712]
[1770445659202,11.433706,2082.1,2081.3,9.30226379]
[1770445659698,0.00423627,2082.1,2081.3,9.30226379]
[1770445660404,11.42946973,2082.7,2081.3,9.30226379]
[1770445661304,11.43378026,2082.7,2081.5,9.23666086]
[1770445664701,11.43378026,2082.7,2081.5,34.01066086]
[1770445664901,11.43378026,2082.7,2081.6,9.41378708]
[1770445668104,11.43378026,2082.7,2081.7,24.839]
[1770445668303,11.43378026,2082.7,2081.6,34.25778708]
[1770445668505,11.43378026,2082.7,2081.6,9.41378708]
[1770445672611,11.67401026,2082.7,2081.4,29.49086136]
[1770445673419,11.67401026,2082.7,2081.5,9.30986136]
[1770445673614,11.42946973,2082.9,2081.5,9.30986136]
[1770445673922,11.42946973,2082.9,2081.6,9.29566528]
[1770445674221,11.42946973,2082.9,2081.7,9.29566528]
[1770445674817,11.43360961,2082.9,2081.7,9.29566528]
[1770445675319,11.43360961,2082.9,2081.9,9.29566528]
[1770445678115,11.43360961,2082.9,2081.9,12.13868958]
[1770445678315,11.43360961,2082.9,2082.1,9.06076102]
[1770445678523,0.00413988,2082.9,2082.1,9.06076102]
[1770445678823,0.00413988,2082.9,2081.9,2.8430243]
[1770445678824,11.43360961,2082.9,2082.3,9.06076102]
[1770445679024,11.43360961,2082.9,2082.3,9.35460312]
[1770445679224,0.00413988,2082.9,2082.3,9.35460312]
[1770445680727,11.43360961,2082.9,2082.0,9.03258351]
[1770445680921,11.43360961,2082.9,2082.0,9.32484958]
[1770445681720,0.00413988,2082.9,2082.0,9.32484958]
[1770445682025,11.42946973,2082.7,2081.5,11.09801537]
[1770445685322,11.42946973,2082.7,2081.5,36.21101537]
[1770445686626,11.42946973,2082.7,2081.6,11.58717259]
[1770445688025,11.5228945,2082.3,2081.3,0.00517667]
[1770445689126,11.5228945,2082.3,2081.3,10.90188585]
[1770445690628,11.5228945,2082.3,2081.3,0.00517667]
[1770445691032,11.7631745,2082.3,2080.9,10.89670918]